[Event "*** Titled Tuesday Blitz"]
[Site "Chess.com"]
[Date "2020.05.12"]
[Round "7"]
[White "Gordima"]
[Black "gahryman"]
[Result "0-1"]
[WhiteElo "2764"]
[BlackElo "2661"]
[TimeControl "180+1"]
[EndTime "11:17:07 PDT"]
[Termination "gahryman won on time"]

1. d4 {[%clk 0:02:17.5]} 1... Nf6 {[%clk 0:02:57.4]} 2. c4 {[%clk 0:02:14.7]}
2... g6 {[%clk 0:02:57.7]} 3. Nc3 {[%clk 0:02:14.9]} 3... Bg7 {[%clk 0:02:58.1]}
4. e4 {[%clk 0:02:14.7]} 4... d6 {[%clk 0:02:57.8]} 5. h3 {[%clk 0:02:15.2]}
5... O-O {[%clk 0:02:57.9]} 6. Be3 {[%clk 0:02:15.9]} 6... e5 {[%clk 0:02:56.2]}
7. d5 {[%clk 0:02:16.2]} 7... a5 {[%clk 0:02:53.3]} 8. g4 {[%clk 0:02:15.5]}
8... Na6 {[%clk 0:02:53.2]} 9. Nge2 {[%clk 0:02:16.1]} 9... h5 {[%clk
0:02:49.6]} 10. f3 {[%clk 0:02:03]} 10... Nc5 {[%clk 0:02:47.8]} 11. Qd2 {[%clk
0:02:00.5]} 11... Bd7 {[%clk 0:02:46.5]} 12. Rg1 {[%clk 0:01:55.4]} 12... h4
{[%clk 0:02:41.6]} 13. Bg5 {[%clk 0:01:52.3]} 13... c6 {[%clk 0:02:41]} 14. Nc1
{[%clk 0:01:28.9]} 14... Qb6 {[%clk 0:02:38.5]} 15. Qf2 {[%clk 0:01:21.1]} 15...
cxd5 {[%clk 0:02:32.8]} 16. cxd5 {[%clk 0:01:20.5]} 16... a4 {[%clk 0:02:25.1]}
17. Nd3 {[%clk 0:01:17]} 17... Rfc8 {[%clk 0:02:21.9]} 18. a3 {[%clk 0:01:07.8]}
18... Qa5 {[%clk 0:02:17]} 19. Nxc5 {[%clk 0:01:04.4]} 19... Rxc5 {[%clk
0:02:16.1]} 20. Bd2 {[%clk 0:01:02.1]} 20... Qc7 {[%clk 0:02:11.6]} 21. Qxh4
{[%clk 0:00:59.9]} 21... b5 {[%clk 0:02:05.4]} 22. Bd3 {[%clk 0:00:58.5]} 22...
Rb8 {[%clk 0:01:57.7]} 23. Na2 {[%clk 0:00:53.1]} 23... Nxd5 {[%clk 0:01:17.7]}
24. exd5 {[%clk 0:00:52.3]} 24... Rxd5 {[%clk 0:01:18.6]} 25. Nb4 {[%clk
0:00:48.7]} 25... Rd4 {[%clk 0:01:16]} 26. Be3 {[%clk 0:00:42.9]} 26... e4
{[%clk 0:01:13.8]} 27. fxe4 {[%clk 0:00:34.7]} 27... Rxb4 {[%clk 0:01:11.5]} 28.
axb4 {[%clk 0:00:35.6]} 28... Bxb2 {[%clk 0:01:11.9]} 29. Ke2 {[%clk 0:00:32.3]}
29... Qc3 {[%clk 0:00:58.9]} 30. Rac1 {[%clk 0:00:25.5]} 30... Qxb4 {[%clk
0:00:57.5]} 31. Rc7 {[%clk 0:00:25]} 31... Be6 {[%clk 0:00:56.3]} 32. Rf1 {[%clk
0:00:23.1]} 32... Bg7 {[%clk 0:00:51.3]} 33. Bh6 {[%clk 0:00:17.1]} 33... Be5
{[%clk 0:00:49.6]} 34. Qe7 {[%clk 0:00:10.5]} 34... Qb2+ {[%clk 0:00:44]} 35.
Rc2 {[%clk 0:00:09.5]} 35... Qb3 {[%clk 0:00:42.7]} 36. Rc7 {[%clk 0:00:08.6]}
36... a3 {[%clk 0:00:40.4]} 37. Ra7 {[%clk 0:00:03.7]} 37... a2 {[%clk
0:00:39.6]} 38. Rc1 {[%clk 0:00:03.3]} 38... a1=Q {[%clk 0:00:33.8]} 39. Raxa1
{[%clk 0:00:03.5]} 39... Bxa1 {[%clk 0:00:34.2]} 40. Qxd6 {[%clk 0:00:04.2]}
40... Re8 {[%clk 0:00:31.6]} 41. Rc2 {[%clk 0:00:02.8]} 41... Be5 {[%clk
0:00:30.2]} 42. Qc5 {[%clk 0:00:01.7]} 42... Bc4 {[%clk 0:00:28.9]} 43. Rxc4
{[%clk 0:00:02]} 43... bxc4 {[%clk 0:00:28.1]} 44. Bxc4 {[%clk 0:00:02.6]} 44...
Qc2+ {[%clk 0:00:27.9]} 45. Kf3 {[%clk 0:00:02.4]} 45... Qc3+ {[%clk 0:00:25.7]}
46. Be3 {[%clk 0:00:02]} 46... Bg7 {[%clk 0:00:22.3]} 47. Qd5 {[%clk 0:00:02.3]}
47... Qf6+ {[%clk 0:00:21.1]} 48. Ke2 {[%clk 0:00:02.8]} 48... Qe6 {[%clk
0:00:20.9]} 49. Qxe6 {[%clk 0:00:02.4]} 49... fxe6 {[%clk 0:00:21.8]} 50. Kf3
{[%clk 0:00:03]} 50... Kf7 {[%clk 0:00:21.7]} 51. g5 {[%clk 0:00:03.4]} 51...
Rc8 {[%clk 0:00:21.2]} 52. Bb3 {[%clk 0:00:03.5]} 52... Rc3 {[%clk 0:00:22.1]}
0-1

[Event "*** Titled Tuesday Blitz"]
[Site "Chess.com"]
[Date "2020.05.12"]
[Round "7"]
[White "elohunter1999"]
[Black "kuban1991"]
[Result "0-1"]
[WhiteElo "2578"]
[BlackElo "2743"]
[TimeControl "180+1"]
[EndTime "11:17:07 PDT"]
[Termination "kuban1991 won on time"]

1. e4 {[%clk 0:03:00.9]} 1... e6 {[%clk 0:02:58.5]} 2. d4 {[%clk 0:03:00.2]}
2... d5 {[%clk 0:02:58.7]} 3. Nc3 {[%clk 0:03:00.2]} 3... Bb4 {[%clk 0:02:58]}
4. e5 {[%clk 0:02:59.6]} 4... c5 {[%clk 0:02:58]} 5. a3 {[%clk 0:02:59.6]} 5...
Bxc3+ {[%clk 0:02:58.4]} 6. bxc3 {[%clk 0:03:00.5]} 6... Nc6 {[%clk 0:02:59]} 7.
Qg4 {[%clk 0:02:59.3]} 7... g6 {[%clk 0:02:59.3]} 8. Bd3 {[%clk 0:02:54.3]} 8...
Qa5 {[%clk 0:02:57.6]} 9. Bd2 {[%clk 0:02:50]} 9... c4 {[%clk 0:02:57.6]} 10.
Be2 {[%clk 0:02:49.1]} 10... Bd7 {[%clk 0:02:58]} 11. Nf3 {[%clk 0:02:31.6]}
11... O-O-O {[%clk 0:02:57.6]} 12. Qf4 {[%clk 0:02:29.3]} 12... Nge7 {[%clk
0:02:51.3]} 13. Ng5 {[%clk 0:02:14.4]} 13... Rdf8 {[%clk 0:02:50.6]} 14. h4
{[%clk 0:01:33.2]} 14... h6 {[%clk 0:02:47.7]} 15. Nf3 {[%clk 0:01:30.5]} 15...
Qa4 {[%clk 0:02:15.4]} 16. Ra2 {[%clk 0:01:27.6]} 16... Rh7 {[%clk 0:02:05.3]}
17. Qf6 {[%clk 0:01:16]} 17... Nf5 {[%clk 0:01:54.2]} 18. g4 {[%clk 0:01:12.9]}
18... Nce7 {[%clk 0:01:49.8]} 19. gxf5 {[%clk 0:00:54.2]} 19... Ng8 {[%clk
0:01:49.7]} 20. fxe6 {[%clk 0:00:25.2]} 20... Nxf6 {[%clk 0:01:46.8]} 21. e7
{[%clk 0:00:25.1]} 21... Re8 {[%clk 0:01:36.3]} 22. exf6 {[%clk 0:00:24.5]}
22... Qc6 {[%clk 0:01:33.8]} 23. Ng5 {[%clk 0:00:24.2]} 23... hxg5 {[%clk
0:01:29]} 24. Bxg5 {[%clk 0:00:25.1]} 24... Rh5 {[%clk 0:01:10.5]} 25. Bxh5
{[%clk 0:00:23.6]} 25... gxh5 {[%clk 0:01:11.4]} 26. Kd2 {[%clk 0:00:22.9]}
26... Bg4 {[%clk 0:01:07.1]} 27. Raa1 {[%clk 0:00:22.1]} 27... Qe6 {[%clk
0:00:58.7]} 28. Rae1 {[%clk 0:00:20.4]} 28... Qf5 {[%clk 0:00:56.6]} 29. f4
{[%clk 0:00:20.9]} 29... Bf3 {[%clk 0:00:56.9]} 30. Re5 {[%clk 0:00:17.1]} 30...
Qxe5 {[%clk 0:00:54.4]} 31. dxe5 {[%clk 0:00:16.5]} 31... Bxh1 {[%clk
0:00:54.6]} 32. f5 {[%clk 0:00:14.9]} 32... d4 {[%clk 0:00:32.1]} 33. cxd4
{[%clk 0:00:15]} 33... Bd5 {[%clk 0:00:30.6]} 34. e6 {[%clk 0:00:15.4]} 34...
Kc7 {[%clk 0:00:19.7]} 35. Kc3 {[%clk 0:00:14.6]} 35... a5 {[%clk 0:00:18.7]}
36. a4 {[%clk 0:00:12.2]} 36... Kc6 {[%clk 0:00:18.5]} 37. Kb2 {[%clk
0:00:12.3]} 37... b5 {[%clk 0:00:16.4]} 38. axb5+ {[%clk 0:00:10.8]} 38... Kxb5
{[%clk 0:00:17.3]} 39. c3 {[%clk 0:00:11]} 39... Ka4 {[%clk 0:00:16.8]} 40. Ka2
{[%clk 0:00:10.7]} 40... Rb8 {[%clk 0:00:16.9]} 41. Ka1 {[%clk 0:00:09.4]} 41...
Kb3 {[%clk 0:00:16.3]} 42. Bf4 {[%clk 0:00:05.4]} 42... Re8 {[%clk 0:00:15.1]}
43. Bc7 {[%clk 0:00:05.2]} 43... a4 {[%clk 0:00:13.2]} 44. Ba5 {[%clk
0:00:05.4]} 44... a3 {[%clk 0:00:11.9]} 45. Bb4 {[%clk 0:00:04.5]} 45... Rg8
{[%clk 0:00:11.2]} 0-1

[Event "*** Titled Tuesday Blitz"]
[Site "Chess.com"]
[Date "2020.05.12"]
[Round "7"]
[White "Kotofeyca"]
[Black "Lion-Al-Messi"]
[Result "0-1"]
[WhiteElo "2430"]
[BlackElo "2457"]
[TimeControl "180+1"]
[EndTime "11:17:07 PDT"]
[Termination "Lion-Al-Messi won by checkmate"]

1. d4 {[%clk 0:03:00.9]} 1... d5 {[%clk 0:02:59.5]} 2. c4 {[%clk 0:03:00.7]}
2... c6 {[%clk 0:02:59.9]} 3. Nc3 {[%clk 0:03:00.5]} 3... Nf6 {[%clk 0:02:59.8]}
4. cxd5 {[%clk 0:03:00.7]} 4... cxd5 {[%clk 0:02:59.7]} 5. Bf4 {[%clk
0:03:01.3]} 5... Nc6 {[%clk 0:02:56.9]} 6. e3 {[%clk 0:03:01.7]} 6... Bg4 {[%clk
0:02:55.7]} 7. f3 {[%clk 0:02:59.6]} 7... Bd7 {[%clk 0:02:47.6]} 8. Bd3 {[%clk
0:02:59.2]} 8... e6 {[%clk 0:02:41.1]} 9. Nge2 {[%clk 0:02:59.2]} 9... Be7
{[%clk 0:02:35.1]} 10. h3 {[%clk 0:02:56.4]} 10... Nh5 {[%clk 0:02:32.8]} 11.
Bh2 {[%clk 0:02:54.9]} 11... Bh4+ {[%clk 0:02:23.3]} 12. g3 {[%clk 0:02:54]}
12... Be7 {[%clk 0:02:24.2]} 13. O-O {[%clk 0:02:50.5]} 13... O-O {[%clk
0:02:19.9]} 14. Rc1 {[%clk 0:02:44.9]} 14... f5 {[%clk 0:02:19.3]} 15. g4 {[%clk
0:02:38.4]} 15... Nf6 {[%clk 0:02:18.3]} 16. gxf5 {[%clk 0:02:33.4]} 16... exf5
{[%clk 0:02:19.2]} 17. Nf4 {[%clk 0:02:30.8]} 17... Nb4 {[%clk 0:02:12.8]} 18.
Bb1 {[%clk 0:02:27.4]} 18... g5 {[%clk 0:02:11.8]} 19. Nd3 {[%clk 0:02:15.4]}
19... Nxd3 {[%clk 0:02:09.8]} 20. Qxd3 {[%clk 0:02:15.5]} 20... Be6 {[%clk
0:02:06]} 21. e4 {[%clk 0:02:06.6]} 21... fxe4 {[%clk 0:02:05.3]} 22. fxe4
{[%clk 0:02:06.6]} 22... dxe4 {[%clk 0:01:04.5]} 23. Nxe4 {[%clk 0:02:06.3]}
23... Rf7 {[%clk 0:00:59.1]} 24. Nxg5 {[%clk 0:02:02.1]} 24... Rg7 {[%clk
0:00:58.5]} 25. h4 {[%clk 0:01:42.9]} 25... h6 {[%clk 0:00:57.7]} 26. Rce1
{[%clk 0:01:18.4]} 26... hxg5 {[%clk 0:00:47.6]} 27. Rxe6 {[%clk 0:01:08.3]}
27... gxh4+ {[%clk 0:00:47.6]} 28. Kf2 {[%clk 0:00:39.8]} 28... Qd5 {[%clk
0:00:41.3]} 29. Rxe7 {[%clk 0:00:17.1]} 29... Qg2+ {[%clk 0:00:39.1]} 30. Ke1
{[%clk 0:00:16.3]} 30... Rxe7+ {[%clk 0:00:38.7]} 31. Kd1 {[%clk 0:00:16.5]}
31... Qg4+ {[%clk 0:00:11.3]} 32. Rf3 {[%clk 0:00:12]} 32... Ne4 {[%clk
0:00:11.3]} 33. Be5 {[%clk 0:00:11.4]} 33... Nf2+ {[%clk 0:00:10.9]} 34. Kd2
{[%clk 0:00:11.6]} 34... Nxd3 {[%clk 0:00:11.8]} 35. Rxd3 {[%clk 0:00:12.1]}
35... Qg2+ {[%clk 0:00:12.1]} 36. Kc3 {[%clk 0:00:11.7]} 36... Rc8+ {[%clk
0:00:11.7]} 37. Kb3 {[%clk 0:00:12.6]} 37... Qd5+ {[%clk 0:00:11.4]} 38. Ka3
{[%clk 0:00:11.9]} 38... Qa5+ {[%clk 0:00:11]} 39. Kb3 {[%clk 0:00:11.5]} 39...
Qb5+ {[%clk 0:00:11.1]} 40. Ka3 {[%clk 0:00:11.6]} 40... Re6 {[%clk 0:00:10.3]}
41. b3 {[%clk 0:00:11.4]} 41... Ra6+ {[%clk 0:00:06]} 42. Kb2 {[%clk 0:00:11.4]}
42... Qa5 {[%clk 0:00:05.9]} 43. Rd1 {[%clk 0:00:08.4]} 43... Qc3# {[%clk
0:00:05.8]} 0-1

[Event "*** Titled Tuesday Blitz"]
[Site "Chess.com"]
[Date "2020.05.12"]
[Round "7"]
[White "RamonManon0g"]
[Black "MartinMatthiesen"]
[Result "0-1"]
[WhiteElo "2202"]
[BlackElo "2400"]
[TimeControl "180+1"]
[EndTime "11:17:07 PDT"]
[Termination "MartinMatthiesen won by resignation"]

1. d4 {[%clk 0:03:00.9]} 1... Nf6 {[%clk 0:02:58.7]} 2. c4 {[%clk 0:03:01]} 2...
g6 {[%clk 0:02:58.3]} 3. Nc3 {[%clk 0:03:01.4]} 3... Bg7 {[%clk 0:02:57.8]} 4.
e4 {[%clk 0:03:01.6]} 4... d6 {[%clk 0:02:57.8]} 5. Nf3 {[%clk 0:03:02.5]} 5...
O-O {[%clk 0:02:57.5]} 6. h3 {[%clk 0:03:02.5]} 6... e5 {[%clk 0:02:57.1]} 7.
dxe5 {[%clk 0:03:02.5]} 7... dxe5 {[%clk 0:02:56.8]} 8. Qxd8 {[%clk 0:03:02.1]}
8... Rxd8 {[%clk 0:02:57.7]} 9. Bg5 {[%clk 0:03:02.4]} 9... Na6 {[%clk
0:02:54.6]} 10. Be2 {[%clk 0:02:55.9]} 10... c6 {[%clk 0:02:52]} 11. O-O {[%clk
0:02:53.6]} 11... Re8 {[%clk 0:02:49.9]} 12. Rad1 {[%clk 0:02:52.5]} 12... Nc5
{[%clk 0:02:48.3]} 13. Nd2 {[%clk 0:02:51.3]} 13... a5 {[%clk 0:02:40.9]} 14.
Be3 {[%clk 0:02:50.6]} 14... Bf8 {[%clk 0:02:33.9]} 15. b3 {[%clk 0:02:46.1]}
15... Ne6 {[%clk 0:02:25.7]} 16. Nf3 {[%clk 0:02:43.7]} 16... Bb4 {[%clk
0:02:17.7]} 17. Na4 {[%clk 0:02:37.6]} 17... Nd7 {[%clk 0:02:02.4]} 18. Nb6
{[%clk 0:02:31]} 18... Nxb6 {[%clk 0:02:01.6]} 19. Bxb6 {[%clk 0:02:31.9]} 19...
Bc5 {[%clk 0:01:58.8]} 20. Bxc5 {[%clk 0:02:24.8]} 20... Nxc5 {[%clk 0:01:59.7]}
21. Bd3 {[%clk 0:02:25]} 21... f6 {[%clk 0:01:50.4]} 22. Bc2 {[%clk 0:02:24.4]}
22... Be6 {[%clk 0:01:44.4]} 23. Rd6 {[%clk 0:02:21.9]} 23... Kf8 {[%clk
0:01:39.7]} 24. Rfd1 {[%clk 0:02:21.9]} 24... Ke7 {[%clk 0:01:39.3]} 25. a3
{[%clk 0:02:18.5]} 25... Rec8 {[%clk 0:01:30.9]} 26. Kf1 {[%clk 0:02:17.5]}
26... a4 {[%clk 0:01:27.6]} 27. b4 {[%clk 0:02:07.4]} 27... Nb3 {[%clk
0:00:53.2]} 28. c5 {[%clk 0:02:00.7]} 28... Rc7 {[%clk 0:00:28.8]} 29. Ke2
{[%clk 0:01:59.8]} 29... Rd7 {[%clk 0:00:28.4]} 30. Ke3 {[%clk 0:01:54.3]} 30...
Rxd6 {[%clk 0:00:28]} 31. Rxd6 {[%clk 0:01:50.2]} 31... Rc8 {[%clk 0:00:26.6]}
32. h4 {[%clk 0:01:44.7]} 32... b6 {[%clk 0:00:26.2]} 33. Bxb3 {[%clk
0:01:39.8]} 33... axb3 {[%clk 0:00:24.4]} 34. Rd2 {[%clk 0:01:24.4]} 34... bxc5
{[%clk 0:00:23.5]} 35. bxc5 {[%clk 0:01:25.3]} 35... Ra8 {[%clk 0:00:24.1]} 36.
Rb2 {[%clk 0:01:22.8]} 36... Rxa3 {[%clk 0:00:23.3]} 37. Nd2 {[%clk 0:01:23.7]}
37... Ra5 {[%clk 0:00:19.2]} 38. Kd3 {[%clk 0:01:17.9]} 38... Rxc5 {[%clk
0:00:18.4]} 39. g3 {[%clk 0:01:13.4]} 39... Rb5 {[%clk 0:00:15.6]} 40. Kc3
{[%clk 0:01:11.9]} 40... Kd6 {[%clk 0:00:15]} 41. f4 {[%clk 0:01:10.8]} 41... c5
{[%clk 0:00:14.4]} 42. fxe5+ {[%clk 0:01:01.9]} 42... fxe5 {[%clk 0:00:15.3]}
43. Nf3 {[%clk 0:01:02.2]} 43... Rb4 {[%clk 0:00:14.5]} 44. Rd2+ {[%clk
0:01:02]} 44... Ke7 {[%clk 0:00:13.2]} 45. Nxe5 {[%clk 0:01:01.8]} 45... Rxe4
{[%clk 0:00:13]} 46. Nd3 {[%clk 0:00:55.7]} 46... c4 {[%clk 0:00:12.3]} 47. Nc5
{[%clk 0:00:55.2]} 47... Re3+ {[%clk 0:00:12.3]} 48. Kd4 {[%clk 0:00:52.7]}
48... Re1 {[%clk 0:00:12]} 49. Nxe6 {[%clk 0:00:50.6]} 49... Kxe6 {[%clk
0:00:11.7]} 50. Kxc4 {[%clk 0:00:50.8]} 50... Re3 {[%clk 0:00:11.2]} 51. g4
{[%clk 0:00:49.2]} 51... Re4+ {[%clk 0:00:10.6]} 52. Kxb3 {[%clk 0:00:49.6]}
52... Rxg4 {[%clk 0:00:11.5]} 53. Rh2 {[%clk 0:00:49.3]} 53... Kf5 {[%clk
0:00:11.6]} 54. Kc3 {[%clk 0:00:49.6]} 54... Kf4 {[%clk 0:00:11.9]} 55. Kd3
{[%clk 0:00:50.2]} 55... Kg3 {[%clk 0:00:12.2]} 56. Rh1 {[%clk 0:00:48.2]} 56...
Kg2 {[%clk 0:00:12.3]} 57. Rg1+ {[%clk 0:00:49.1]} 57... Kxg1 {[%clk 0:00:12.1]}
58. Ke3 {[%clk 0:00:49.5]} 58... Kg2 {[%clk 0:00:11.7]} 59. h5 {[%clk 0:00:49]}
59... gxh5 {[%clk 0:00:12]} 0-1

[Event "*** Titled Tuesday Blitz"]
[Site "Chess.com"]
[Date "2020.05.12"]
[Round "7"]
[White "LionTheLeon_06"]
[Black "Zakaryan_David"]
[Result "0-1"]
[WhiteElo "2664"]
[BlackElo "2528"]
[TimeControl "180+1"]
[EndTime "11:17:08 PDT"]
[Termination "Zakaryan_David won on time"]

1. Nf3 {[%clk 0:03:00.9]} 1... Nf6 {[%clk 0:02:59.1]} 2. g3 {[%clk 0:03:00.1]}
2... g6 {[%clk 0:02:58.7]} 3. b3 {[%clk 0:03:00.4]} 3... Bg7 {[%clk 0:02:58.3]}
4. Bb2 {[%clk 0:03:00.8]} 4... O-O {[%clk 0:02:57.8]} 5. Bg2 {[%clk 0:03:00.7]}
5... d6 {[%clk 0:02:50.4]} 6. d4 {[%clk 0:03:00.4]} 6... c5 {[%clk 0:02:39.6]}
7. O-O {[%clk 0:02:38.5]} 7... cxd4 {[%clk 0:02:32.9]} 8. Nxd4 {[%clk
0:02:38.6]} 8... Qc7 {[%clk 0:02:24.4]} 9. c4 {[%clk 0:02:36.9]} 9... Nc6 {[%clk
0:02:24]} 10. Nc3 {[%clk 0:02:34.9]} 10... Bd7 {[%clk 0:02:19.3]} 11. Rc1 {[%clk
0:02:34]} 11... Qa5 {[%clk 0:02:05.4]} 12. e3 {[%clk 0:02:09.2]} 12... Rac8
{[%clk 0:01:59.6]} 13. Re1 {[%clk 0:01:53]} 13... Rfd8 {[%clk 0:01:58]} 14. h3
{[%clk 0:01:47.8]} 14... Be8 {[%clk 0:01:56.7]} 15. Qd2 {[%clk 0:01:43.3]} 15...
a6 {[%clk 0:01:55.5]} 16. Red1 {[%clk 0:01:37]} 16... e6 {[%clk 0:01:46.7]} 17.
Qe2 {[%clk 0:01:09.9]} 17... Nxd4 {[%clk 0:01:39.5]} 18. exd4 {[%clk 0:00:41.5]}
18... b5 {[%clk 0:01:38.6]} 19. c5 {[%clk 0:00:22.2]} 19... dxc5 {[%clk
0:01:34]} 20. dxc5 {[%clk 0:00:21.5]} 20... Rxd1+ {[%clk 0:01:24.6]} 21. Nxd1
{[%clk 0:00:17.1]} 21... b4 {[%clk 0:00:50.2]} 22. Bd4 {[%clk 0:00:14.3]} 22...
Bb5 {[%clk 0:00:41]} 23. Qb2 {[%clk 0:00:14.1]} 23... Ne8 {[%clk 0:00:37.9]} 24.
Bxg7 {[%clk 0:00:14.2]} 24... Nxg7 {[%clk 0:00:37.8]} 25. Ne3 {[%clk 0:00:14.9]}
25... Qd8 {[%clk 0:00:32.4]} 26. h4 {[%clk 0:00:14.6]} 26... h5 {[%clk
0:00:29.8]} 27. c6 {[%clk 0:00:13.9]} 27... Ne8 {[%clk 0:00:23.9]} 28. Qe5
{[%clk 0:00:12.8]} 28... Qd6 {[%clk 0:00:20.7]} 29. Qe4 {[%clk 0:00:08.5]} 29...
Nf6 {[%clk 0:00:19.6]} 30. Qc2 {[%clk 0:00:07.9]} 30... Kf8 {[%clk 0:00:17]} 31.
Nc4 {[%clk 0:00:08]} 31... Qc5 {[%clk 0:00:14.4]} 32. Ne3 {[%clk 0:00:04.3]}
32... Qxc2 {[%clk 0:00:13.2]} 33. Rxc2 {[%clk 0:00:05.2]} 33... Ke7 {[%clk
0:00:12.3]} 34. Nc4 {[%clk 0:00:05.2]} 34... Nd5 {[%clk 0:00:10.1]} 35. Bxd5
{[%clk 0:00:04.4]} 35... exd5 {[%clk 0:00:09.7]} 36. Ne5 {[%clk 0:00:04.7]}
36... Kd6 {[%clk 0:00:08.4]} 37. Nxf7+ {[%clk 0:00:04.9]} 37... Ke6 {[%clk
0:00:07.7]} 38. Ng5+ {[%clk 0:00:05]} 38... Kd6 {[%clk 0:00:07.3]} 39. Re2
{[%clk 0:00:04.9]} 39... Rxc6 {[%clk 0:00:06.4]} 0-1

[Event "*** Titled Tuesday Blitz"]
[Site "Chess.com"]
[Date "2020.05.12"]
[Round "7"]
[White "Tashik"]
[Black "MaxVavulin"]
[Result "0-1"]
[WhiteElo "2455"]
[BlackElo "2632"]
[TimeControl "180+1"]
[EndTime "11:17:08 PDT"]
[Termination "MaxVavulin won on time"]

1. c4 {[%clk 0:03:00.9]} 1... g6 {[%clk 0:02:57.1]} 2. e4 {[%clk 0:03:00.4]}
2... Bg7 {[%clk 0:02:56.4]} 3. d4 {[%clk 0:02:59.9]} 3... c5 {[%clk 0:02:55.9]}
4. d5 {[%clk 0:02:59.8]} 4... d6 {[%clk 0:02:56]} 5. Nc3 {[%clk 0:02:59.8]} 5...
e6 {[%clk 0:02:56.3]} 6. f3 {[%clk 0:02:52.7]} 6... Ne7 {[%clk 0:02:55.4]} 7.
Be3 {[%clk 0:02:46.1]} 7... O-O {[%clk 0:02:48.7]} 8. Qd2 {[%clk 0:02:46.1]}
8... exd5 {[%clk 0:02:45.8]} 9. cxd5 {[%clk 0:02:45.7]} 9... a6 {[%clk
0:02:45.4]} 10. a4 {[%clk 0:02:44.9]} 10... f5 {[%clk 0:02:42.7]} 11. h4 {[%clk
0:02:27.9]} 11... Nd7 {[%clk 0:02:27.4]} 12. h5 {[%clk 0:02:27.9]} 12... Ne5
{[%clk 0:02:26.4]} 13. hxg6 {[%clk 0:02:16.7]} 13... hxg6 {[%clk 0:02:26.6]} 14.
Bh6 {[%clk 0:02:09.6]} 14... Nf7 {[%clk 0:02:13.8]} 15. Bxg7 {[%clk 0:02:07.4]}
15... Kxg7 {[%clk 0:02:14.5]} 16. Nge2 {[%clk 0:01:49.2]} 16... Rh8 {[%clk
0:02:04.2]} 17. Rxh8 {[%clk 0:01:47.8]} 17... Qxh8 {[%clk 0:02:04.8]} 18. O-O-O
{[%clk 0:01:47.1]} 18... Bd7 {[%clk 0:01:53.7]} 19. Nf4 {[%clk 0:01:43.9]} 19...
Qh6 {[%clk 0:01:43]} 20. Ne6+ {[%clk 0:01:40.1]} 20... Kg8 {[%clk 0:01:08.6]}
21. exf5 {[%clk 0:01:30.5]} 21... gxf5 {[%clk 0:01:02.4]} 22. g4 {[%clk
0:01:28.9]} 22... Qxd2+ {[%clk 0:00:55.1]} 23. Rxd2 {[%clk 0:01:28.6]} 23... Ne5
{[%clk 0:00:55.6]} 24. Be2 {[%clk 0:01:12]} 24... Kf7 {[%clk 0:00:53.6]} 25.
gxf5 {[%clk 0:01:00.8]} 25... Nxf5 {[%clk 0:00:53.1]} 26. Ne4 {[%clk 0:01:01.4]}
26... Bxe6 {[%clk 0:00:45.1]} 27. Ng5+ {[%clk 0:00:43.1]} 27... Ke7 {[%clk
0:00:45.2]} 28. Nxe6 {[%clk 0:00:44]} 28... Rh8 {[%clk 0:00:37.6]} 29. b3 {[%clk
0:00:38.2]} 29... Rh2 {[%clk 0:00:34.7]} 30. Bd1 {[%clk 0:00:32.3]} 30... Rh1
{[%clk 0:00:32.7]} 31. Kb2 {[%clk 0:00:28.3]} 31... Ne3 {[%clk 0:00:32.9]} 32.
Be2 {[%clk 0:00:24.3]} 32... Rh2 {[%clk 0:00:32.6]} 33. Kc3 {[%clk 0:00:06.4]}
33... Nxd5+ {[%clk 0:00:32.5]} 34. Rxd5 {[%clk 0:00:06.9]} 34... Rxe2 {[%clk
0:00:27.3]} 35. Nf4 {[%clk 0:00:06.5]} 35... Re3+ {[%clk 0:00:27.2]} 36. Kc2
{[%clk 0:00:05.9]} 36... Rxf3 {[%clk 0:00:27.3]} 37. Ne2 {[%clk 0:00:05.9]}
37... Ke6 {[%clk 0:00:27.2]} 38. Rd1 {[%clk 0:00:06.3]} 38... Rf2 {[%clk
0:00:26.1]} 39. Rd2 {[%clk 0:00:04.5]} 39... Rf1 {[%clk 0:00:25.5]} 40. Nc3
{[%clk 0:00:03.9]} 40... Nc6 {[%clk 0:00:18.5]} 41. Ne4 {[%clk 0:00:03.1]} 41...
Nd4+ {[%clk 0:00:18.1]} 42. Kb2 {[%clk 0:00:03.3]} 42... Re1 {[%clk 0:00:17]}
43. Ng5+ {[%clk 0:00:01.5]} 43... Kf5 {[%clk 0:00:16.4]} 44. Nf7 {[%clk
0:00:01.1]} 44... Re6 {[%clk 0:00:13.8]} 45. Nd8 {[%clk 0:00:01.6]} 45... Re7
{[%clk 0:00:14]} 0-1